fUST/lending_fUST_20250221
["ID","MTS","AMOUNT","RATE_DAILY","PERIOD"]
[353856429,1740096645203,-2602.3,0.00014027,2]
[353856430,1740096645213,-909.59,0.00014027,2]
[353856431,1740096645223,-1558.66,0.00014027,2]
[353856432,1740096645233,-500.0,0.00014027,2]
[353856433,1740096645245,-3345.4,0.00014027,2]
[353856434,1740096645256,-3522.52,0.00014027,2]
[353856435,1740096645265,-6601.19,0.00014027,2]
[353856436,1740096645275,-554.07,0.00014027,2]
[353856437,1740096645284,-500.0,0.00014027,2]
[353856438,1740096645293,-682.12,0.00014027,2]
[353856439,1740096645302,-3591.47,0.00014027,2]
[353856440,1740096645312,-584.09,0.00014027,2]
[353856441,1740096645321,-657.23,0.00014027,2]
[353856442,1740096645330,-500.0,0.00014027,2]
[353856443,1740096645339,-1996.0,0.00014027,2]
[353856444,1740096645348,-855.35,0.00014027,2]
[353856445,1740096645357,-1243.14,0.00014027,2]
[353856446,1740096645366,-2053.02,0.00014027,2]
[353856447,1740096645376,-2400.28,0.00014027,2]
[353856448,1740096645385,-1084.12,0.00014027,2]
[353856449,1740096645394,-5873.51,0.00014027,2]
[353856450,1740096645404,-500.0,0.00014027,2]
[353856451,1740096645414,-550.36,0.00014027,2]
[353856452,1740096645424,-619.18273082,0.00014027,2]
[353856453,1740096645434,-2528.55,0.00014027,2]
[353856454,1740096645444,-2085.88,0.00014027,2]
[353856455,1740096645454,-500.0,0.00014027,2]
[353856456,1740096645468,-500.0,0.00014027,2]
[353856457,1740096645479,-567.85,0.00014027,2]
[353856458,1740096645489,-500.0,0.00014027,2]
[353856459,1740096645499,-500.0,0.00014027,2]
[353856460,1740096645509,-755.6,0.00014027,2]
[353856461,1740096645518,-500.0,0.00014027,2]
[353856462,1740096645528,-500.0,0.00014027,2]
[353856463,1740096645539,-1871.42,0.00014027,2]
[353856464,1740096645548,-18104.48,0.00014027,2]
[353856465,1740096645558,-500.0,0.00014027,2]
[353856466,1740096645567,-500.0,0.00014027,2]
[353856467,1740096645577,-500.0,0.00014027,2]
[353856468,1740096645588,-7438.69753278,0.00014068,2]
[353856469,1740096645597,-686.6,0.00014109,2]
[353856470,1740096645609,-500.0,0.00014109,2]
[353856471,1740096645618,-358.92,0.00014109,2]
[353856472,1740096645628,-500.0,0.00014109,2]
[353856473,1740096645638,-500.0,0.00014109,2]
[353856474,1740096645648,-500.0,0.00014109,2]
[353856475,1740096645657,-500.0,0.00014109,2]
[353856476,1740096645667,-500.0,0.00014109,2]
[353856477,1740096645676,-500.0,0.00014109,2]
[353856478,1740096645686,-500.0,0.00014109,2]
[353856479,1740096645697,-1606.58,0.00014109,2]
[353856480,1740096645706,-500.0,0.00014109,2]
[353856481,1740096645716,-500.0,0.00014109,2]
[353856482,1740096645726,-500.0,0.00014109,2]
[353856483,1740096645736,-751.56,0.00014109,2]
[353856484,1740096645746,-500.0,0.00014109,2]
[353856486,1740096645756,-964.76,0.00014109,2]
[353856487,1740096645765,-589.91,0.00014109,2]
[353856488,1740096645775,-500.0,0.00014109,2]
[353856489,1740096645785,-500.0,0.00014109,2]
[353856490,1740096645795,-634.48,0.00014109,2]
[353856491,1740096645807,-687.91,0.00014109,2]
[353856492,1740096645816,-500.0,0.00014109,2]
[353856493,1740096645826,-1161.15,0.00014109,2]
[353856494,1740096645836,-647.21,0.00014109,2]
[353856495,1740096645846,-789.92,0.00014109,2]
[353856496,1740096645855,-1279.72,0.00014109,2]
[353856497,1740096645864,-638.7,0.00014109,2]
[353856498,1740096645873,-500.0,0.00014109,2]
[353856499,1740096645883,-658.92,0.00014109,2]
[353856500,1740096645892,-596.03,0.00014109,2]
[353856501,1740096645902,-1224.27,0.00014109,2]
[353856502,1740096645912,-500.0,0.00014109,2]
[353856503,1740096645922,-500.0,0.00014109,2]
[353856504,1740096645931,-901.49,0.00014109,2]
[353856505,1740096645941,-558.57,0.00014109,2]
[353856506,1740096645951,-500.0,0.00014109,2]
[353856507,1740096645961,-807.14,0.00014109,2]
[353856508,1740096645970,-588.3,0.00014109,2]
[353856509,1740096645980,-500.0,0.00014109,2]
[353856510,1740096645989,-242.45975678,0.00014109,2]
[353856511,1740096645999,-500.0,0.00014109,2]
[353856512,1740096646008,-500.0,0.00014109,2]
[353856513,1740096646018,-500.0,0.00014109,2]
[353856514,1740096646028,-429.67719466,0.00014109,2]
[353856515,1740096646038,-500.0,0.00014109,2]
[353856516,1740096646048,-2112.09,0.00014109,2]
[353856517,1740096646058,-2172.75,0.00014109,2]
[353856518,1740096646067,-500.0,0.00014109,2]
[353856519,1740096646077,-500.0,0.00014109,2]
[353856520,1740096646087,-528.95,0.00014109,2]
[353856521,1740096646097,-7729.28,0.00014109,2]
[353856522,1740096646107,-500.0,0.00014109,2]
[353856523,1740096646116,-3094.13,0.00014109,2]
[353856524,1740096646126,-1136.15,0.00014109,2]
[353856525,1740096646136,-1486.57,0.00014109,2]
[353856526,1740096646145,-600.33,0.00014109,2]
[353856527,1740096646156,-500.0,0.00014109,2]
[353856528,1740096646165,-500.0,0.00014109,2]
[353856530,1740096646175,-37996.16,0.00014109,2]
[353856531,1740096646186,-3464.25,0.00014109,2]
[353856532,1740096646196,-1175.47,0.00014109,2]
[353856533,1740096646206,-13639.53,0.00014109,2]
[353856534,1740096646216,-1634.77,0.00014109,2]
[353856535,1740096646226,-502.91,0.00014109,2]
[353856537,1740096646238,-500.0,0.00014109,2]
[353856538,1740096646248,-500.0,0.00014109,2]
[353856539,1740096646258,-790.91,0.00014109,2]
[353856540,1740096646267,-1221.06,0.00014109,2]
[353856541,1740096646276,-500.0,0.00014109,2]
[353856543,1740096646287,-1344.49,0.00014109,2]
[353856544,1740096646296,-622.0,0.00014109,2]
[353856545,1740096646306,-2602.3,0.00014109,2]
[353856546,1740096646315,-909.59,0.00014109,2]
[353856547,1740096646324,-1558.66,0.00014109,2]
[353856548,1740096646334,-500.0,0.00014109,2]
[353856549,1740096646343,-3345.4,0.00014109,2]
[353856550,1740096646352,-3522.52,0.00014109,2]
[353856551,1740096646362,-6601.19,0.00014109,2]
[353856552,1740096646372,-554.07,0.00014109,2]
[353856553,1740096646382,-500.0,0.00014109,2]
[353856554,1740096646392,-682.12,0.00014109,2]
[353856555,1740096646401,-3591.47,0.00014109,2]
[353856556,1740096646411,-584.09,0.00014109,2]
[353856557,1740096646421,-657.23,0.00014109,2]
[353856558,1740096646431,-500.0,0.00014109,2]
[353856559,1740096646440,-1996.0,0.00014109,2]
[353856560,1740096646547,-855.35,0.00014109,2]
[353856561,1740096646557,-1243.14,0.00014109,2]
[353856562,1740096646567,-2053.02,0.00014109,2]
[353856563,1740096646578,-2400.28,0.00014109,2]
[353856564,1740096646589,-1084.12,0.00014109,2]
[353856565,1740096646599,-5873.51,0.00014109,2]
[353856566,1740096646610,-550.36,0.00014109,2]
[353856567,1740096646620,-500.0,0.00014109,2]
[353856568,1740096646631,-2528.55,0.00014109,2]
[353856569,1740096646641,-2085.88,0.00014109,2]
[353856570,1740096646650,-500.0,0.00014109,2]
[353856571,1740096646660,-500.0,0.00014109,2]
[353856572,1740096646669,-567.85,0.00014109,2]
[353856573,1740096646679,-500.0,0.00014109,2]
[353856574,1740096646688,-500.0,0.00014109,2]
[353856575,1740096646698,-755.6,0.00014109,2]
[353856576,1740096646707,-500.0,0.00014109,2]
[353856577,1740096646717,-500.0,0.00014109,2]
[353856578,1740096646727,-1871.42,0.00014109,2]
[353856579,1740096646736,-18104.48,0.00014109,2]
[353856580,1740096646746,-500.0,0.00014109,2]
[353856581,1740096646755,-500.0,0.00014109,2]
[353856582,1740096646765,-500.0,0.00014109,2]
[353856583,1740096646775,-600.0,0.00014164,2]
[353856584,1740096646785,-355.207113,0.00014164,2]
[353856585,1740096646795,-355.207113,0.00014164,2]
[353856586,1740096646805,-355.207113,0.00014164,2]
[353856587,1740096646814,-355.207113,0.00014164,2]
[353856588,1740096646825,-355.207113,0.00014164,2]
[353856589,1740096646835,-355.207113,0.00014164,2]
[353856590,1740096646844,-355.207113,0.00014164,2]
[353856591,1740096646854,-354.1549357,0.00014164,2]
[353856592,1740096646863,-500.0,0.00014173,2]
[353856593,1740096646873,-500.0,0.00014173,2]
[353856594,1740096646882,-500.0,0.00014173,2]
[353856595,1740096646892,-500.0,0.00014173,2]
[353856596,1740096646902,-500.0,0.00014173,2]
[353856597,1740096646912,-500.0,0.00014173,2]
[353856598,1740096646921,-500.0,0.00014173,2]
[353856599,1740096646931,-500.0,0.00014173,2]
[353856600,1740096646940,-156.63025775,0.00014173,2]
[353856601,1740096646950,-500.67238242,0.00014173,2]
[353856602,1740096646959,-416.79402787,0.00014173,2]
[353856603,1740096646968,-500.0,0.00014173,2]
[353856604,1740096646978,-162.97630381,0.00014173,2]
[353856605,1740096646987,-500.0,0.00014173,2]
[353856606,1740096646997,-504.86614696,0.00014173,2]
[353856607,1740096647007,-500.0,0.00014173,2]
[353856608,1740096647016,-500.0,0.00014173,2]
[353856609,1740096647027,-500.0,0.00014173,2]
[353856610,1740096647037,-500.0,0.00014173,2]
[353856611,1740096647046,-500.0,0.00014173,2]
[353856612,1740096647056,-500.0,0.00014173,2]
[353856613,1740096647066,-500.0,0.00014173,2]
[353856614,1740096647076,-500.0,0.00014173,2]
[353856615,1740096647086,-500.0,0.00014173,2]
[353856616,1740096647096,-250.76985661,0.00014173,2]
[353856617,1740096647105,-500.0,0.00014173,2]
[353856618,1740096647115,-500.0,0.00014173,2]
[353856619,1740096647125,-500.0,0.00014173,2]
[353856620,1740096647134,-170.82861777,0.00014173,2]
[353856621,1740096647144,-2246.54732415,0.00014173,2]
[353856622,1740096647154,-686.6,0.00014191,2]
[353856623,1740096647164,-500.0,0.00014191,2]
[353856624,1740096647174,-500.0,0.00014191,2]
[353856625,1740096647183,-500.0,0.00014191,2]
[353856626,1740096647192,-500.0,0.00014191,2]
[353856627,1740096647202,-500.0,0.00014191,2]
[353856628,1740096647212,-500.0,0.00014191,2]
[353856629,1740096647221,-500.0,0.00014191,2]
[353856630,1740096647231,-500.0,0.00014191,2]
[353856631,1740096647241,-1606.58,0.00014191,2]
[353856632,1740096647250,-500.0,0.00014191,2]
[353856633,1740096647260,-500.0,0.00014191,2]
[353856634,1740096647270,-500.0,0.00014191,2]
[353856635,1740096647279,-751.56,0.00014191,2]
[353856636,1740096647289,-500.0,0.00014191,2]
[353856637,1740096647299,-964.76,0.00014191,2]
[353856638,1740096647309,-589.91,0.00014191,2]
[353856639,1740096647319,-500.0,0.00014191,2]
[353856640,1740096647329,-500.0,0.00014191,2]
[353856641,1740096647339,-634.48,0.00014191,2]
[353856642,1740096647349,-687.91,0.00014191,2]
[353856643,1740096647358,-500.0,0.00014191,2]
[353856644,1740096647367,-1161.15,0.00014191,2]
[353856645,1740096647376,-647.21,0.00014191,2]
[353856646,1740096647386,-789.92,0.00014191,2]
[353856647,1740096647395,-1279.72,0.00014191,2]
[353856648,1740096647405,-638.7,0.00014191,2]
[353856649,1740096647414,-500.0,0.00014191,2]
[353856650,1740096647424,-658.92,0.00014191,2]
[353856651,1740096647433,-596.03,0.00014191,2]
[353856652,1740096647443,-1224.27,0.00014191,2]
[353856653,1740096647452,-500.0,0.00014191,2]
[353856654,1740096647467,-500.0,0.00014191,2]
[353856655,1740096647476,-901.49,0.00014191,2]
[353856656,1740096647487,-558.57,0.00014191,2]
[353856657,1740096647496,-500.0,0.00014191,2]
[353856658,1740096647507,-807.14,0.00014191,2]
[353856659,1740096647517,-588.3,0.00014191,2]
[353856660,1740096647527,-500.0,0.00014191,2]
[353856661,1740096647537,-500.0,0.00014191,2]
[353856662,1740096647547,-500.0,0.00014191,2]
[353856663,1740096647556,-500.0,0.00014191,2]
[353856664,1740096647565,-2112.09,0.00014191,2]
[353856665,1740096647575,-2172.75,0.00014191,2]
[353856666,1740096647584,-500.0,0.00014191,2]
[353856667,1740096647593,-500.0,0.00014191,2]
[353856668,1740096647603,-528.95,0.00014191,2]
[353856669,1740096647613,-7729.28,0.00014191,2]
[353856670,1740096647623,-460.55664343,0.00014191,2]
[353856671,1740096647632,-3094.13,0.00014191,2]
[353856672,1740096647642,-1136.15,0.00014191,2]
[353856673,1740096647652,-1486.57,0.00014191,2]
[353856674,1740096647662,-600.33,0.00014191,2]
[353856675,1740096647672,-330.96217767,0.00014191,2]
[353856676,1740096647683,-500.0,0.00014191,2]
[353856677,1740096647692,-37996.16,0.00014191,2]
[353856678,1740096647702,-3464.25,0.00014191,2]
[353856679,1740096647711,-1175.47,0.00014191,2]
[353856680,1740096647721,-13639.53,0.00014191,2]
[353856681,1740096647731,-1634.77,0.00014191,2]
[353856682,1740096647741,-502.91,0.00014191,2]
[353856683,1740096647751,-500.0,0.00014191,2]
[353856684,1740096647761,-500.0,0.00014191,2]
[353856685,1740096647771,-790.91,0.00014191,2]
[353856686,1740096647781,-1221.06,0.00014191,2]
[353856687,1740096647790,-500.0,0.00014191,2]
[353856688,1740096647799,-1344.49,0.00014191,2]
[353856689,1740096647809,-622.0,0.00014191,2]
[353856690,1740096647819,-2602.3,0.00014191,2]
[353856691,1740096647829,-909.59,0.00014191,2]
[353856692,1740096647838,-1558.66,0.00014191,2]
[353856693,1740096647847,-500.0,0.00014191,2]
[353856694,1740096647857,-3345.4,0.00014191,2]
[353856695,1740096647867,-3522.52,0.00014191,2]
[353856696,1740096647876,-6601.19,0.00014191,2]
[353856697,1740096647886,-554.07,0.00014191,2]
[353856698,1740096647896,-500.0,0.00014191,2]
[353856699,1740096647905,-682.12,0.00014191,2]
[353856700,1740096647916,-3591.47,0.00014191,2]
[353856701,1740096647925,-584.09,0.00014191,2]
[353856702,1740096647935,-657.23,0.00014191,2]
[353856703,1740096647944,-500.0,0.00014191,2]
[353856704,1740096647954,-1996.0,0.00014191,2]
[353856705,1740096647963,-855.35,0.00014191,2]
[353856706,1740096647972,-1243.14,0.00014191,2]
[353856707,1740096647982,-2053.02,0.00014191,2]
[353856708,1740096647994,-2400.28,0.00014191,2]
[353856709,1740096648004,-1084.12,0.00014191,2]
[353856710,1740096648013,-5873.51,0.00014191,2]
[353856711,1740096648023,-550.36,0.00014191,2]
[353856712,1740096648033,-500.0,0.00014191,2]
[353856713,1740096648043,-2528.55,0.00014191,2]
[353856714,1740096648053,-2085.88,0.00014191,2]
[353856715,1740096648063,-500.0,0.00014191,2]
[353856716,1740096648073,-500.0,0.00014191,2]
[353856717,1740096648083,-567.85,0.00014191,2]
[353856718,1740096648093,-500.0,0.00014191,2]
[353856719,1740096648104,-500.0,0.00014191,2]
[353856720,1740096648114,-755.6,0.00014191,2]
[353856721,1740096648124,-500.0,0.00014191,2]
[353856722,1740096648133,-500.0,0.00014191,2]
[353856723,1740096648143,-1871.42,0.00014191,2]
[353856724,1740096648152,-18104.48,0.00014191,2]
[353856725,1740096648161,-500.0,0.00014191,2]
[353856726,1740096648171,-500.0,0.00014191,2]
[353856727,1740096648182,-500.0,0.00014191,2]
[353856728,1740096648192,-151.0,0.000142,2]
[353856729,1740096648202,-151.0,0.000142,2]
[353856730,1740096648212,-396.0,0.00014226,2]
[353856731,1740096648224,-166.160499,0.00014267,2]
[353856732,1740096648234,-686.6,0.00014273,2]
[353856733,1740096648245,-500.0,0.00014273,2]
[353856734,1740096648254,-500.0,0.00014273,2]
[353856735,1740096648265,-500.0,0.00014273,2]
[353856736,1740096648275,-500.0,0.00014273,2]
[353856737,1740096648285,-500.0,0.00014273,2]
[353856738,1740096648294,-500.0,0.00014273,2]
[353856739,1740096648304,-500.0,0.00014273,2]
[353856740,1740096648313,-500.0,0.00014273,2]
[353856741,1740096648323,-1606.58,0.00014273,2]
[353856742,1740096648333,-500.0,0.00014273,2]
[353856743,1740096648343,-500.0,0.00014273,2]
[353856744,1740096648352,-500.0,0.00014273,2]
[353856745,1740096648363,-751.56,0.00014273,2]
[353856746,1740096648373,-500.0,0.00014273,2]
[353856747,1740096648382,-964.76,0.00014273,2]
[353856748,1740096648392,-589.91,0.00014273,2]
[353856749,1740096648402,-500.0,0.00014273,2]
[353856750,1740096648411,-634.48,0.00014273,2]
[353856751,1740096648421,-687.91,0.00014273,2]
[353856752,1740096648431,-500.0,0.00014273,2]
[353856753,1740096648440,-1161.15,0.00014273,2]
[353856754,1740096648450,-647.21,0.00014273,2]
[353856755,1740096648461,-789.92,0.00014273,2]
[353856756,1740096648473,-1279.72,0.00014273,2]
[353856757,1740096648483,-638.7,0.00014273,2]
[353856758,1740096648493,-500.0,0.00014273,2]
[353856759,1740096648503,-658.92,0.00014273,2]
[353856760,1740096648512,-596.03,0.00014273,2]
[353856761,1740096648522,-1224.27,0.00014273,2]
[353856762,1740096648532,-500.0,0.00014273,2]
[353856763,1740096648543,-500.0,0.00014273,2]
[353856764,1740096648554,-901.49,0.00014273,2]
[353856765,1740096648563,-558.57,0.00014273,2]
[353856766,1740096648655,-220.53,0.00014273,2]
[353856767,1740096648674,-807.14,0.00014273,2]
[353856768,1740096648684,-588.3,0.00014273,2]
[353856769,1740096648693,-500.0,0.00014273,2]
[353856770,1740096648703,-500.0,0.00014273,2]
[353856771,1740096648712,-500.0,0.00014273,2]
[353856772,1740096648722,-500.0,0.00014273,2]
[353856773,1740096648732,-2112.09,0.00014273,2]
[353856774,1740096648741,-2172.75,0.00014273,2]
[353856775,1740096648751,-500.0,0.00014273,2]
[353856776,1740096648760,-500.0,0.00014273,2]
[353856777,1740096648770,-528.95,0.00014273,2]
[353856778,1740096648781,-7729.28,0.00014273,2]
[353856779,1740096648791,-3094.13,0.00014273,2]
[353856780,1740096648801,-1136.15,0.00014273,2]
[353856781,1740096648811,-1486.57,0.00014273,2]
[353856782,1740096648821,-600.33,0.00014273,2]
[353856783,1740096648831,-500.0,0.00014273,2]
[353856784,1740096648840,-37996.16,0.00014273,2]
[353856785,1740096648849,-3464.25,0.00014273,2]
[353856786,1740096648859,-1175.47,0.00014273,2]
[353856787,1740096648870,-13639.53,0.00014273,2]
[353856788,1740096648879,-1634.77,0.00014273,2]
[353856789,1740096648889,-502.91,0.00014273,2]
[353856790,1740096648900,-500.0,0.00014273,2]
[353856791,1740096648910,-500.0,0.00014273,2]
[353856792,1740096648919,-790.91,0.00014273,2]
[353856793,1740096648929,-1221.06,0.00014273,2]
[353856794,1740096648939,-500.0,0.00014273,2]
[353856795,1740096648950,-1344.49,0.00014273,2]
[353856796,1740096648959,-622.0,0.00014273,2]
[353856797,1740096648969,-2602.3,0.00014273,2]
[353856798,1740096648979,-909.59,0.00014273,2]
[353856799,1740096648989,-1558.66,0.00014273,2]
[353856800,1740096649000,-500.0,0.00014273,2]
[353856801,1740096649010,-3345.4,0.00014273,2]
[353856802,1740096649020,-3522.52,0.00014273,2]
[353856803,1740096649030,-6601.19,0.00014273,2]
[353856804,1740096649039,-554.07,0.00014273,2]
[353856805,1740096649048,-500.0,0.00014273,2]
[353856806,1740096649059,-682.12,0.00014273,2]
[353856807,1740096649070,-3591.47,0.00014273,2]
[353856808,1740096649080,-584.09,0.00014273,2]
[353856809,1740096649090,-657.23,0.00014273,2]
[353856810,1740096649101,-500.0,0.00014273,2]
[353856811,1740096649111,-1996.0,0.00014273,2]
[353856812,1740096649121,-855.35,0.00014273,2]
[353856813,1740096649131,-1243.14,0.00014273,2]
[353856814,1740096649142,-2053.02,0.00014273,2]
[353856815,1740096649152,-2400.28,0.00014273,2]
[353856816,1740096649162,-1084.12,0.00014273,2]
[353856817,1740096649173,-5873.51,0.00014273,2]
[353856818,1740096649183,-550.36,0.00014273,2]
[353856819,1740096649194,-500.0,0.00014273,2]
[353856820,1740096649204,-2528.55,0.00014273,2]
[353856821,1740096649214,-2085.88,0.00014273,2]
[353856822,1740096649224,-500.0,0.00014273,2]
[353856823,1740096649235,-500.0,0.00014273,2]
[353856824,1740096649248,-567.85,0.00014273,2]
[353856825,1740096649258,-500.0,0.00014273,2]
[353856826,1740096649269,-500.0,0.00014273,2]
[353856827,1740096649279,-755.6,0.00014273,2]
[353856828,1740096649289,-500.0,0.00014273,2]
[353856829,1740096649299,-500.0,0.00014273,2]
[353856830,1740096649309,-1871.42,0.00014273,2]
[353856831,1740096649319,-18104.48,0.00014273,2]
[353856832,1740096649329,-500.0,0.00014273,2]
[353856833,1740096649338,-500.0,0.00014273,2]
[353856834,1740096649347,-500.0,0.00014273,2]
[353856835,1740096649356,-482.39098823,0.00014291,2]
[353856836,1740096649365,-151.0,0.000143,2]
[353856837,1740096649375,-528.422,0.00014327,2]
[353856838,1740096649386,-686.6,0.00014356,2]
[353856839,1740096649395,-500.0,0.00014356,2]
[353856840,1740096649405,-500.0,0.00014356,2]
[353856841,1740096649415,-500.0,0.00014356,2]
[353856842,1740096649425,-500.0,0.00014356,2]
[353856843,1740096649435,-500.0,0.00014356,2]
[353856844,1740096649444,-500.0,0.00014356,2]
[353856845,1740096649454,-500.0,0.00014356,2]
[353856846,1740096649468,-500.0,0.00014356,2]
[353856847,1740096649477,-1606.58,0.00014356,2]
[353856848,1740096649488,-500.0,0.00014356,2]
[353856849,1740096649498,-500.0,0.00014356,2]
[353856850,1740096649509,-500.0,0.00014356,2]
[353856851,1740096649519,-751.56,0.00014356,2]
[353856852,1740096649530,-500.0,0.00014356,2]
[353856853,1740096649541,-964.76,0.00014356,2]
[353856854,1740096649551,-589.91,0.00014356,2]
[353856855,1740096649562,-500.0,0.00014356,2]
[353856856,1740096649573,-634.48,0.00014356,2]
[353856857,1740096649584,-687.91,0.00014356,2]
[353856858,1740096649595,-370.32730835,0.00014356,2]
[353856859,1740096649606,-1161.15,0.00014356,2]
[353856860,1740096649616,-647.21,0.00014356,2]
[353856861,1740096649626,-789.92,0.00014356,2]
[353856862,1740096649636,-1279.72,0.00014356,2]
[353856863,1740096649646,-638.7,0.00014356,2]
[353856864,1740096649656,-500.0,0.00014356,2]
[353856865,1740096649666,-658.92,0.00014356,2]
[353856866,1740096649676,-596.03,0.00014356,2]
[353856867,1740096649685,-1224.27,0.00014356,2]
[353856868,1740096649695,-500.0,0.00014356,2]
[353856869,1740096649704,-254.68426012,0.00014356,2]
[353856870,1740096649714,-901.49,0.00014356,2]
[353856871,1740096649723,-558.57,0.00014356,2]
[353856872,1740096649732,-807.14,0.00014356,2]
[353856873,1740096649744,-588.3,0.00014356,2]
[353856874,1740096649754,-500.0,0.00014356,2]
[353856875,1740096649763,-500.0,0.00014356,2]
[353856876,1740096649773,-500.0,0.00014356,2]
[353856877,1740096649782,-500.0,0.00014356,2]
[353856878,1740096649793,-2112.09,0.00014356,2]
[353856879,1740096649804,-2172.75,0.00014356,2]
[353856880,1740096649813,-500.0,0.00014356,2]
[353856881,1740096649823,-500.0,0.00014356,2]
[353856882,1740096649833,-528.95,0.00014356,2]
[353856883,1740096649842,-152.137845,0.00014356,2]
[353856884,1740096649852,-151.0,0.00014356,2]
[353856885,1740096649861,-7729.28,0.00014356,2]
[353856886,1740096649871,-3094.13,0.00014356,2]
[353856887,1740096649883,-1136.15,0.00014356,2]
[353856888,1740096649893,-1486.57,0.00014356,2]
[353856889,1740096649902,-600.33,0.00014356,2]
[353856890,1740096649912,-500.0,0.00014356,2]
[353856891,1740096649922,-37996.16,0.00014356,2]
[353856892,1740096649931,-3464.25,0.00014356,2]
[353856893,1740096649942,-1175.47,0.00014356,2]
[353856894,1740096649955,-13639.53,0.00014356,2]
[353856895,1740096649965,-151.0,0.00014356,2]
[353856896,1740096649974,-1634.77,0.00014356,2]
[353856897,1740096649984,-502.91,0.00014356,2]
[353856898,1740096649995,-500.0,0.00014356,2]
[353856899,1740096650006,-500.0,0.00014356,2]
[353856900,1740096650015,-790.91,0.00014356,2]
[353856901,1740096650025,-1221.06,0.00014356,2]
[353856902,1740096650035,-500.0,0.00014356,2]
[353856903,1740096650044,-1344.49,0.00014356,2]
[353856904,1740096650054,-622.0,0.00014356,2]
[353856905,1740096650064,-2602.3,0.00014356,2]
[353856906,1740096650075,-909.59,0.00014356,2]
[353856907,1740096650085,-1558.66,0.00014356,2]
[353856908,1740096650094,-500.0,0.00014356,2]
[353856909,1740096650104,-3345.4,0.00014356,2]
[353856910,1740096650114,-3522.52,0.00014356,2]
[353856911,1740096650123,-6601.19,0.00014356,2]
[353856912,1740096650133,-554.07,0.00014356,2]
[353856913,1740096650142,-500.0,0.00014356,2]
[353856914,1740096650151,-682.12,0.00014356,2]
[353856915,1740096650161,-192.8,0.00014356,2]
[353856916,1740096650171,-3591.47,0.00014356,2]
[353856917,1740096650183,-192.8,0.00014356,2]
[353856918,1740096650192,-584.09,0.00014356,2]
[353856919,1740096650202,-657.23,0.00014356,2]
[353856920,1740096650211,-500.0,0.00014356,2]
[353856921,1740096650221,-1996.0,0.00014356,2]
[353856922,1740096650230,-855.35,0.00014356,2]
[353856923,1740096650241,-1243.14,0.00014356,2]
[353856924,1740096650251,-2053.02,0.00014356,2]
[353856925,1740096650261,-2400.28,0.00014356,2]
[353856926,1740096650271,-1084.12,0.00014356,2]
[353856927,1740096650281,-5873.51,0.00014356,2]
[353856928,1740096650290,-550.36,0.00014356,2]
[353856929,1740096650300,-500.0,0.00014356,2]
[353856930,1740096650310,-2528.55,0.00014356,2]
[353856931,1740096650319,-2085.88,0.00014356,2]
[353856932,1740096650328,-500.0,0.00014356,2]